fUSD/lending_fUSD_20260115
["ID","MTS","AMOUNT","RATE_DAILY","PERIOD"]
[402020825,1768474241463,-192.48,0.00018091,2]
[402020826,1768474241473,-161.13962,0.0001812,2]
[402020827,1768474241482,-500.0,0.00018128,2]
[402020828,1768474241491,-500.0,0.00018183,2]
[402020829,1768474241500,-617.40005154,0.00018195,2]
[402020830,1768474241510,-161.13963,0.0001822,2]
[402020831,1768474241519,-500.0,0.00018238,2]
[402020832,1768474241528,-1394.5,0.00018253,2]
[402020833,1768474241537,-168.0,0.0001828,2]
[402020834,1768474241547,-500.0,0.00018293,2]
[402020835,1768474241556,-400.7,0.00018293,2]
[402020836,1768474241566,-161.13963,0.0001832,2]
[402020837,1768474241575,-500.0,0.00018348,2]
[402020838,1768474241585,-570.9,0.00018367,2]
[402020839,1768474241594,-500.0,0.00018402,2]
[402020840,1768474241603,-161.13962,0.0001842,2]
[402020841,1768474241613,-168.0,0.00018441,2]
[402020842,1768474241623,-500.0,0.00018457,2]
[402020843,1768474241633,-334.5472959,0.00018468,2]
[402020844,1768474241642,-250.49144649,0.00018502,2]
[402020845,1768474241652,-500.0,0.00018512,2]
[402020846,1768474241663,-168.0,0.0001852,2]
[402020847,1768474241673,-161.13963,0.0001852,2]
[402020848,1768474241683,-571.09376387,0.00018567,2]
[402020849,1768474241693,-168.0,0.00018573,2]
[402020850,1768474241704,-168.0,0.00018585,2]
[402020851,1768474241713,-6151.13264166,0.0001862,2]
[402020852,1768474241722,-900.0,0.0001863,2]
[402020853,1768474241733,-168.0,0.00018651,2]
[402020854,1768474241742,-1000.0,0.00018686,2]
[402020855,1768474241751,-453.0,0.000187,2]
[402020856,1768474241760,-168.0,0.00018708,2]
[402020857,1768474241770,-349.31,0.00018734,2]
[402020858,1768474241779,-640.24385345,0.00018743,2]
[402020859,1768474241788,-1000.0,0.00018893,2]
[402020860,1768474241797,-168.0,0.00018899,2]
[402020861,1768474241807,-179.17388048,0.000189,2]
[402020862,1768474241816,-192.48,0.00018914,2]
[402020863,1768474241826,-400.7,0.00018931,2]
[402020864,1768474241836,-1000.0,0.00018942,2]
[402020865,1768474241845,-300.0,0.00018999,2]
[402020866,1768474241855,-82243.6153559,0.00019,2]
[402020867,1768474241864,-168.0,0.00019042,2]
[402020868,1768474241874,-1458.95920354,0.0001917,2]
[402020869,1768474241884,-589.42632882,0.0001917,2]
[402020870,1768474241893,-1000.0,0.0001917,2]
[402020871,1768474241903,-500.0,0.0001917,2]
[402020872,1768474241912,-1000.0,0.0001917,2]
[402020873,1768474241922,-500.0,0.0001917,2]
[402020874,1768474241932,-621.88276305,0.00019178,2]
[402020875,1768474241941,-168.0,0.00019279,2]
[402020876,1768474241950,-663.93287602,0.00019291,2]
[402020877,1768474241960,-349.31,0.00019548,2]
[402020878,1768474241970,-400.7,0.0001957,2]
[402020879,1768474241979,-150.0,0.00019585,2]
[402020880,1768474241989,-192.48,0.00019736,2]
[402020881,1768474241998,-219.10722287,0.00019837,2]
[402020882,1768474242007,-688.49839244,0.00019839,2]
[402020883,1768474242017,-302.94097839,0.000199,4]
[402020884,1768474242027,-150.99,0.00020145,2]
[402020885,1768474242036,-9382.95,0.00020145,2]
[402020886,1768474242045,-299.99,0.00020145,7]
[402020887,1768474242055,-513.53,0.00020145,2]
[402020888,1768474242064,-9999.99,0.00020145,2]
[402020889,1768474242073,-999.99,0.00020145,2]
[402020890,1768474242082,-250.0,0.00020274,5]
[402020891,1768474242091,-713.97283296,0.00020387,2]
[402020892,1768474242101,-2527.293,0.00020397,2]
[402020893,1768474242110,-1331.0,0.00020397,2]
[402020894,1768474242119,-614.0,0.00020397,2]
[402020895,1768474242129,-1406.0,0.00020397,2]
[402020896,1768474242138,-412.0,0.00020397,2]
[402020897,1768474242147,-1267.0,0.00020397,2]
[402020898,1768474242156,-566.0,0.00020397,2]
[402020899,1768474242165,-265.0,0.00020397,2]
[402020900,1768474242174,-6558.0,0.00020397,2]
[402020901,1768474242184,-4822.0,0.00020397,2]
[402020902,1768474242193,-570.9,0.00020408,2]
[402020903,1768474242203,-202.38593899,0.00020433,2]
[402020904,1768474242212,-1394.5,0.00020494,2]
[402020905,1768474242221,-250.0,0.00020548,5]
[402020906,1768474242231,-1000.0,0.00020555,2]
[402020907,1768474242241,-192.48,0.00020558,2]
[402020908,1768474242255,-1135.66570932,0.0002064,2]
[402020909,1768474242265,-740.38982778,0.00020935,2]
[402020910,1768474242275,-150.04,0.00021,2]
[402020911,1768474242284,-284.22846268,0.00021086,3]
[402020912,1768474242295,-15201.19591663,0.00021193,2]
[402020913,1768474242305,-178.52,0.0002125,2]
[402020914,1768474242314,-192.48,0.00021381,2]
[402020915,1768474242324,-767.7842514,0.00021483,2]
[402020916,1768474242334,-1101.0,0.00021726,2]
[402020917,1768474242343,-5000.0,0.00021918,2]
[402020918,1768474242354,-500.0,0.00021918,2]
[402020919,1768474242365,-500.31098427,0.00021973,2]
[402020920,1768474242375,-468.63691428,0.00022031,2]
[402020921,1768474242385,-192.48,0.00022203,2]
[402020922,1768474242396,-158.72722158,0.00022247,2]
[402020923,1768474242407,-1000.0,0.00022423,2]
[402020924,1768474242420,-570.9,0.00022448,2]
[402020925,1768474242430,-233.19,0.00022556,2]
[402020926,1768474242439,-233.19,0.00022597,2]
[402020927,1768474242448,-732.43998159,0.00022629,2]
[402020928,1768474242457,-1394.5,0.00022734,2]
[402020929,1768474242467,-297.51824924,0.00022736,2]
[402020930,1768474242476,-1101.0,0.0002287,2]
[402020931,1768474242485,-233.19,0.00022877,2]
[402020932,1768474242495,-2120.98,0.00022918,2]
[402020933,1768474242506,-1331.0,0.00023397,2]
[402020934,1768474242516,-1115.668,0.00023397,2]
[402020935,1768474242527,-412.0,0.00023397,2]
[402020936,1768474242536,-566.0,0.00023397,2]
[402020937,1768474242546,-6558.0,0.00023397,2]
[402020938,1768474242557,-1101.0,0.00024073,2]
[402020939,1768474242567,-238.8,0.00024225,30]
[402020941,1768474242577,-2000.0,0.000244,30]
[402020943,1768474242586,-178.52,0.00024479,2]
[402020945,1768474242596,-570.9,0.00024489,2]
[402020946,1768474242606,-12460.0,0.000246,2]
[402020948,1768474242616,-1416.05,0.00024655,2]
[402020949,1768474242625,-1000.0,0.00024658,2]
[402020950,1768474242635,-151.0,0.000249,7]
[402020951,1768474242644,-151.298537,0.000249,7]
[402020952,1768474242654,-151.0,0.000249,7]
[402020955,1768474242663,-151.0,0.000249,7]
[402020957,1768474242675,-502390.387879,0.000249,2]
[402020960,1768474242685,-151.0,0.000249,7]
[402020962,1768474242694,-202.38593899,0.00024909,2]
[402020963,1768474242705,-1394.5,0.00024975,2]
[402020965,1768474242714,-285.6,0.00025,2]
[402020966,1768474242723,-5533.0,0.000251,3]
[402020967,1768474242733,-250.0,0.00025204,2]
[402020968,1768474242742,-194.531,0.00025204,2]
[402020969,1768474242752,-157.526,0.00025204,2]
[402020970,1768474242761,-250.0,0.00025204,2]
[402020971,1768474242771,-191.042,0.00025204,2]
[402020972,1768474242780,-212.092,0.00025204,2]
[402020973,1768474242789,-250.0,0.00025204,2]
[402020974,1768474242798,-169.0,0.00025204,2]
[402020975,1768474242807,-229.853,0.00025204,2]
[402020976,1768474242817,-1101.0,0.0002534,2]
[402020977,1768474242827,-5533.0,0.000256,5]
[402020978,1768474242837,-412.0,0.00026397,2]
[402020979,1768474242847,-4380.96739791,0.00026397,2]
[402020980,1768474242862,-435.373553,0.00026397,2]
[402020981,1768474242873,-1074.31264673,0.00026397,2]
[402020982,1768474242885,-667.34640236,0.00026397,2]
[402020983,1768474242896,-1101.0,0.00026674,2]
[402020984,1768474242906,-556.93,0.00026801,2]
[402020985,1768474242915,-505.0,0.00027137,2]
[402020986,1768474242926,-1394.5,0.00027216,2]
[402020987,1768474242935,-1000.0,0.00027265,2]
[402020988,1768474242945,-732.43998159,0.00027357,2]
[402020989,1768474242954,-150.0,0.00027369,2]
[402020990,1768474242964,-523.2,0.00027397,2]
[402020991,1768474242974,-156.96,0.00027397,2]
[402020992,1768474242983,-300.0,0.00027397,2]
[402020993,1768474242995,-500.0,0.00027397,20]
[402020994,1768474243005,-349.77166565,0.00027466,2]
[402020995,1768474243017,-523.34287504,0.00027466,2]
[402020996,1768474243029,-126.88545931,0.00027466,2]
[402020997,1768474243038,-493.15,0.00027499,2]
[402020998,1768474243048,-470.01577329,0.00027709,3]
[402020999,1768474243057,-1903.7537474,0.00028,15]
[402021000,1768474243088,-344.53084108,0.0001594,2]
[402021001,1768474243098,-96.2462526,0.00028,15]
[402021002,1768474243108,-624.27000217,0.00028078,5]
[402021009,1768474243758,-333.79867547,0.00014778,2]
[402021015,1768475342371,639.55,0.000202,30]
[402021045,1768475432741,-1180.06,0.00013811,2]
[402021046,1768475432751,-1737.554,0.00015541,2]
[402021047,1768475432762,-167.609,0.00015541,2]
[402021048,1768475432772,-857007.64462856,0.00015748,2]
[402021049,1768475432786,-46224.53781189,0.00015748,2]
[402021050,1768475432798,-1254.41808677,0.00015748,2]
[402021051,1768475432814,-884.42008,0.00015748,2]
[402021075,1768475438286,-999.0,0.00015748,2]
[402021076,1768475438327,-1800.0,0.00015748,2]
[402021084,1768475440076,-62342.22049278,0.00015748,2]
[402021085,1768475440086,-2500.0,0.00015758,2]
[402021086,1768475440097,-8847.00469553,0.00015762,2]
[402021087,1768475440106,-173.473662,0.0001584,2]
[402021088,1768475440115,-77321.29934662,0.00015848,2]
[402021089,1768475440124,-512.6608624,0.00015857,2]
[402021090,1768475440134,-500.0,0.00015857,2]
[402021091,1768475440145,-500.0,0.00015857,2]
[402021092,1768475440154,-500.0,0.00015857,2]
[402021093,1768475440163,-500.0,0.00015857,2]
[402021094,1768475440174,-500.0,0.00015857,2]
[402021095,1768475440183,-516.26,0.00015857,2]
[402021096,1768475440193,-500.0,0.00015857,2]
[402021097,1768475440202,-500.0,0.00015857,2]
[402021098,1768475440212,-507.4251083,0.00015857,2]
[402021099,1768475440222,-500.0,0.00015857,2]
[402021100,1768475440232,-500.0,0.00015857,2]
[402021101,1768475440241,-500.0,0.00015857,2]
[402021102,1768475440251,-500.0,0.00015857,2]
[402021103,1768475440264,-500.0,0.00015857,2]
[402021104,1768475440274,-500.0,0.00015857,2]
[402021105,1768475440283,-500.0,0.00015857,2]
[402021106,1768475440293,-449.12408341,0.00015857,2]
[402021107,1768475440303,-500.0,0.00015857,2]
[402021108,1768475440312,-500.0,0.00015857,2]
[402021109,1768475440321,-500.0,0.00015857,2]
[402021110,1768475440331,-500.0,0.00015857,2]
[402021111,1768475440340,-500.0,0.00015857,2]
[402021112,1768475440349,-500.0,0.00015857,2]
[402021113,1768475440359,-500.0,0.00015857,2]
[402021114,1768475440369,-540.62005933,0.00015857,2]
[402021115,1768475440378,-500.0,0.00015857,2]
[402021116,1768475440388,-500.0,0.00015857,2]
[402021117,1768475440397,-500.0,0.00015857,2]
[402021118,1768475440407,-500.0,0.00015857,2]
[402021119,1768475440416,-500.0,0.00015857,2]
[402021120,1768475440426,-500.0,0.00015857,2]
[402021121,1768475440436,-500.0,0.00015857,2]
[402021122,1768475440446,-500.0,0.00015857,2]
[402021124,1768475440455,-500.0,0.00015857,2]
[402021125,1768475440465,-500.0,0.00015857,2]
[402021126,1768475440476,-500.0,0.00015857,2]
[402021127,1768475440486,-500.0,0.00015857,2]
[402021128,1768475440497,-500.0,0.00015857,2]
[402021129,1768475440506,-500.0,0.00015857,2]
[402021130,1768475440517,-500.0,0.00015857,2]
[402021131,1768475440526,-500.0,0.00015857,2]
[402021132,1768475440536,-531.56447092,0.00015857,2]
[402021133,1768475440545,-441.63337288,0.00015857,2]
[402021134,1768475440556,-500.0,0.00015857,2]
[402021135,1768475440565,-500.0,0.00015857,2]
[402021136,1768475440574,-166.66,0.00015862,2]
[402021137,1768475440583,-500.0,0.0001594,2]
[402021138,1768475440592,-500.0,0.0001594,2]
[402021139,1768475440602,-500.0,0.0001594,2]
[402021140,1768475440611,-500.0,0.0001594,2]
[402021141,1768475440621,-500.0,0.0001594,2]
[402021142,1768475440632,-500.0,0.0001594,2]
[402021143,1768475440641,-500.0,0.0001594,2]
[402021144,1768475440654,-500.0,0.0001594,2]
[402021145,1768475440664,-1000.0,0.00015941,2]
[402021146,1768475440674,-151.0,0.00016022,2]
[402021147,1768475440684,-151.0,0.00016022,2]
[402021148,1768475440693,-500.0,0.00016041,2]
[402021149,1768475440708,-500.0,0.00016041,2]
[402021150,1768475440718,-500.0,0.00016041,2]
[402021151,1768475440727,-500.0,0.00016041,2]
[402021152,1768475440736,-500.0,0.00016041,2]
[402021153,1768475440745,-500.0,0.00016041,2]
[402021154,1768475440755,-525.51243154,0.00016041,2]
[402021155,1768475440764,-500.0,0.00016041,2]
[402021156,1768475440773,-500.0,0.00016041,2]
[402021157,1768475440782,-500.0,0.00016041,2]
[402021158,1768475440792,-486.66435485,0.00016041,2]
[402021159,1768475440803,-500.0,0.00016041,2]
[402021160,1768475440814,-500.0,0.00016041,2]
[402021161,1768475440824,-508.83778667,0.00016041,2]
[402021162,1768475440834,-500.0,0.00016041,2]
[402021163,1768475440844,-500.0,0.00016041,2]
[402021164,1768475440854,-510.1418066,0.00016041,2]
[402021165,1768475440863,-500.0,0.00016041,2]
[402021166,1768475440873,-500.0,0.00016041,2]
[402021167,1768475440883,-505.24437882,0.00016041,2]
[402021168,1768475440892,-166.66,0.00016196,2]
[402021169,1768475440901,-6032.69499793,0.00016358,2]
[402021170,1768475440911,-500.0,0.00016523,2]
[402021171,1768475440921,-166.66,0.0001653,2]
[402021172,1768475440933,-495.68,0.00016711,2]
[402021173,1768475440947,-4069.48,0.00016741,2]
[402021174,1768475440956,-200.0,0.00016786,2]
[402021175,1768475440965,-500.0,0.00016852,2]
[402021176,1768475440974,-166.66,0.00016864,2]
[402021177,1768475440983,-320.56,0.00017023,2]
[402021178,1768475440993,-166.66,0.00017198,2]
[402021179,1768475441002,-166.66,0.00017532,2]
[402021180,1768475441012,-495.68,0.00017546,2]
[402021181,1768475441022,-320.56,0.00017661,2]
[402021182,1768475441031,-500.0,0.0001769,2]
[402021183,1768475441044,-500.0,0.00017745,2]
[402021184,1768475441053,-500.0,0.000178,2]
[402021185,1768475441063,-500.0,0.00017854,2]
[402021186,1768475441073,-168.0,0.00017899,2]
[402021187,1768475441082,-500.0,0.00017909,2]
[402021188,1768475441091,-500.0,0.00017964,2]
[402021189,1768475441101,-500.0,0.00017999,2]
[402021190,1768475441110,-551.83023748,0.00017999,2]
[402021191,1768475441121,-154.69460384,0.00017999,2]
[402021192,1768475441131,-500.0,0.00018019,2]
[402021193,1768475441141,-168.0,0.00018068,2]
[402021194,1768475441150,-500.0,0.00018074,2]
[402021195,1768475441160,-500.0,0.00018128,2]
[402021196,1768475441169,-500.0,0.00018183,2]
[402021197,1768475441179,-571.09376387,0.00018238,2]
[402021198,1768475441188,-1278.3,0.00018241,2]
[402021199,1768475441198,-250.49144649,0.00018249,2]
[402021200,1768475441207,-320.56,0.000183,2]
[402021201,1768475441218,-495.68,0.00018382,2]
[402021202,1768475441227,-168.0,0.00018439,2]
[402021203,1768475441238,-168.0,0.00018525,2]
[402021204,1768475441248,-574.12855637,0.00018603,2]
[402021205,1768475441257,-322.6107,0.00018603,2]
[402021206,1768475441267,-8847.00469551,0.00018627,2]
[402021207,1768475441276,-900.0,0.0001863,2]
[402021208,1768475441286,-168.0,0.00018662,2]
[402021209,1768475441295,-224071.97,0.00018665,2]
[402021210,1768475441305,-2557.3997058,0.0001884,2]
[402021211,1768475441314,-320.56,0.00018938,2]
[402021212,1768475441324,-168.0,0.00018985,2]
[402021213,1768475441333,-82243.6153559,0.00019,2]
[402021214,1768475441343,-200.18708233,0.00019082,2]
[402021215,1768475441352,-595.37131296,0.00019151,2]
[402021216,1768475441362,-1000.0,0.0001917,2]
[402021217,1768475441371,-500.0,0.0001917,2]
[402021218,1768475441381,-1458.95920354,0.0001917,2]
[402021219,1768475441390,-589.42632882,0.0001917,2]
[402021220,1768475441399,-168.0,0.00019178,2]
[402021221,1768475441409,-621.88276305,0.00019178,2]
[402021222,1768475441421,-495.68,0.00019217,2]
[402021223,1768475441431,-168.0,0.0001926,2]
[402021224,1768475441440,-320.56,0.00019576,2]
[402021225,1768475441451,-168.0,0.00019593,2]
[402021226,1768475441461,-168.0,0.00019674,2]
[402021227,1768475441471,-617.40005154,0.00019699,2]
[402021228,1768475441480,-231.04381877,0.00019972,2]
[402021229,1768475441489,-495.68,0.00020053,2]
[402021230,1768475441499,-640.24385345,0.00020247,2]
[402021231,1768475441508,-173.47366199,0.00020332,2]
[402021232,1768475441517,-1278.3,0.00020483,2]
[402021233,1768475441527,-6904.0,0.00020749,2]
[402021234,1768475441536,-663.93287602,0.00020795,2]
[402021235,1768475441546,-299.99,0.00020951,7]
[402021236,1768475441555,-688.49839244,0.00021343,2]
[402021237,1768475441564,-213.0,0.00021347,2]
[402021238,1768475441574,-226.84,0.00021347,2]
[402021239,1768475441583,-250.0,0.00021347,2]
[402021240,1768475441592,-194.531,0.00021347,2]
[402021241,1768475441602,-157.526,0.00021347,2]
[402021242,1768475441612,-250.0,0.00021347,2]
[402021243,1768475441621,-191.042,0.00021347,2]
[402021244,1768475441634,-212.092,0.00021347,2]
[402021245,1768475441645,-250.0,0.00021347,2]
[402021246,1768475441657,-169.0,0.00021347,2]
[402021247,1768475441666,-229.853,0.00021347,2]
[402021248,1768475441677,-1331.0,0.00021347,2]
[402021249,1768475441687,-1406.0,0.00021347,2]
[402021250,1768475441699,-2527.293,0.00021347,2]
[402021251,1768475441711,-614.0,0.00021347,2]
[402021252,1768475441720,-1267.0,0.00021347,2]
[402021253,1768475441731,-412.0,0.00021347,2]
[402021254,1768475441740,-914.0,0.00021347,2]
[402021255,1768475441749,-1201.0,0.00021347,2]
[402021256,1768475441760,-2438.0,0.00021347,2]
[402021257,1768475441770,-4823.0,0.00021347,2]
[402021258,1768475441779,-566.0,0.00021347,2]
[402021259,1768475441789,-12460.0,0.000214,2]
[402021260,1768475441798,-8847.00469551,0.00021491,2]
[402021261,1768475441808,-6749.01828562,0.0002154,2]
[402021262,1768475441817,-713.97283296,0.00021891,2]
[402021263,1768475441827,-5533.0,0.000219,3]
[402021264,1768475441837,-5000.0,0.00021918,2]
[402021265,1768475441846,-500.0,0.00021918,2]
[402021266,1768475441855,-500.31098427,0.00021973,2]
[402021267,1768475441864,-158.72722158,0.00022114,2]
[402021268,1768475441876,-15201.19591663,0.00022196,2]
[402021269,1768475441886,-453.0,0.000224,2]
[402021270,1768475441896,-807.31112414,0.00022439,2]
[402021271,1768475441906,-5533.0,0.000225,5]
[402021272,1768475441916,-1278.3,0.00022724,2]
[402021273,1768475441926,-3019.3891532,0.000232,5]
[402021274,1768475441937,-1331.0,0.00024347,2]
[402021275,1768475441947,-1115.668,0.00024347,2]
[402021276,1768475441956,-412.0,0.00024347,2]
[402021277,1768475441966,-2438.0,0.00024347,2]
[402021278,1768475441975,-4821.0,0.00024347,2]
[402021279,1768475441986,-566.0,0.00024347,2]
[402021280,1768475441995,-8847.00469551,0.00024356,2]
[402021281,1768475442005,-1000.0,0.00024658,2]
[402021282,1768475442014,-97299.97148191,0.000248,2]
[402021302,1768475443803,-4822.0,0.000248,2]
[402021308,1768475446072,-6558.0,0.00021347,2]
[402021309,1768475446087,-30321.37010909,0.000248,2]
[402021310,1768475446096,-173.47366199,0.00024824,2]
[402021311,1768475446105,-150.0,0.00024824,2]
[402021312,1768475446114,-493384.607905,0.000249,2]
[402021313,1768475446123,-8506.63117077,0.00024953,2]
[402021314,1768475446133,-43376.3701951,0.00024963,2]
[402021315,1768475446142,-488.29332106,0.00025492,2]
[402021316,1768475446151,-1180.06,0.00025592,2]
[402021317,1768475446160,-11906.06824254,0.0002664,2]
[402021318,1768475446169,-17810.76603567,0.0002664,2]
[402021319,1768475446179,-24098.5998,0.0002664,2]
[402021320,1768475446188,-178.52,0.0002666,2]
[402021321,1768475446197,-6151.13264166,0.00026674,2]
[402021322,1768475446206,-505.0,0.00027137,2]
[402021323,1768475446216,-8847.00469551,0.0002722,2]
[402021324,1768475446226,-412.0,0.00027347,2]
[402021325,1768475446235,-2438.0,0.00027347,2]
[402021326,1768475446244,-150.0,0.00027369,2]
[402021327,1768475446254,-348.23459764,0.00027499,2]
[402021328,1768475446263,-151.0,0.00027499,2]
[402021329,1768475446276,-225.59547,0.00027499,2]
[402021330,1768475446285,-150.0,0.00027531,5]
[402021331,1768475446294,-1000.0,0.00027659,2]
[402021332,1768475446303,-225.59548,0.00027699,2]
[402021333,1768475446312,-1000.0,0.00027783,2]
[402021334,1768475446321,-1000.0,0.00027798,2]
[402021335,1768475446330,-1000.0,0.00027821,2]
[402021336,1768475446340,-1000.0,0.00027829,2]
[402021337,1768475446349,-591.12534207,0.00027843,2]
[402021338,1768475446358,-408.87465793,0.00027863,2]
[402021339,1768475446367,-1000.0,0.00027877,2]
[402021340,1768475446376,-1000.0,0.00027893,2]
[402021341,1768475446386,-1000.0,0.00027893,2]
[402021342,1768475446395,-1000.0,0.00027895,2]
[402021343,1768475446405,-225.59548,0.00027899,2]
[402021344,1768475446415,-1000.0,0.00027915,2]
[402021345,1768475446425,-1000.0,0.00027928,2]
[402021347,1768475446434,-1000.0,0.00027959,2]
[402021348,1768475446443,-1000.0,0.00027978,2]
[402021350,1768475446452,-285.6,0.00028,2]
[402021352,1768475446462,-1000.0,0.00028002,2]
[402021354,1768475446471,-150.0,0.00028062,2]
[402021356,1768475446483,-1000.0,0.0002807,2]
[402021357,1768475446493,-500.0,0.0002807,2]
[402021358,1768475446502,-476.72999783,0.00028078,5]
[402021359,1768475446512,-225.59548,0.00028099,2]
[402021360,1768475446521,-225.59547,0.00028299,2]
[402021361,1768475446531,-225.59548,0.00028499,2]
[402021362,1768475446541,-483.21,0.00028575,2]
[402021363,1768475446550,-707.23,0.00028575,2]
[402021364,1768475446561,-505.0,0.00028647,3]
[402021365,1768475446571,-225.59548,0.00028699,2]
[402021366,1768475446580,-556.93,0.00028767,2]
[402021367,1768475446590,-225.59548,0.00028899,2]
[402021368,1768475446599,-488.29332106,0.00028912,2]
[402021369,1768475446609,-190.79,0.00028938,2]
[402021370,1768475446618,-9678.5764282,0.00029026,2]
[402021371,1768475446628,-225.59547,0.00029099,2]
[402021372,1768475446638,-297.51824924,0.00029119,2]
[402021373,1768475446648,-238.8,0.00029272,30]
[402021374,1768475446657,-225.59548,0.00029299,2]
[402021375,1768475446669,-173.47366199,0.00029316,2]
[402021376,1768475446679,-662.09,0.00029479,2]
[402021377,1768475446688,-1101.0,0.00029482,5]
[402021378,1768475446698,-2159.5823084,0.00029933,2]
[402021379,1768475446709,-201.0,0.0003,15]
[402021380,1768475446719,-154.79,0.0003,2]
[402021381,1768475446729,-161.77,0.0003,4]
[402021382,1768475446739,-8847.00469551,0.00030085,2]
[402021383,1768475446749,-3826.12,0.00030137,120]
[402021384,1768475446759,-1000.0,0.00030137,120]
[402021385,1768475446769,-1000.0,0.00030137,120]
[402021386,1768475446779,-1000.0,0.00030137,120]
[402021387,1768475446790,-1000.0,0.00030137,120]
[402021388,1768475446800,-1000.0,0.00030137,120]
[402021389,1768475446810,-1000.0,0.00030137,120]
[402021390,1768475446820,-1000.0,0.00030137,120]
[402021391,1768475446830,-1000.0,0.00030137,120]
[402021392,1768475446839,-1000.0,0.00030137,120]
[402021393,1768475446848,-1084.82,0.00030137,120]
[402021394,1768475446858,-505.0,0.00030158,5]
[402021395,1768475446869,-187.337,0.00030347,2]
[402021396,1768475446879,-1804.842,0.00030347,2]
[402021397,1768475446889,-284.22846268,0.00030439,6]
[402021398,1768475446900,-556.93,0.0003063,2]
[402021399,1768475446910,-171.57,0.0003063,2]
[402021400,1768475446920,-152.14,0.0003063,2]
[402021401,1768475446931,-1101.0,0.00030956,5]
[402021402,1768475446940,-359.49,0.00031397,2]
[402021403,1768475446950,-178.52,0.0003143,2]
[402021404,1768475446960,-505.0,0.00031668,6]
[402021405,1768475446970,-871.68,0.000317,7]
[402021406,1768475446979,-179.41,0.00031755,2]
[402021407,1768475446989,-181.01024507,0.00032,120]
[402021408,1768475446999,-500.0,0.00032,120]
[402021409,1768475447009,-488.29332106,0.00032333,2]
[402021410,1768475447019,-1101.0,0.00032504,5]
[402021411,1768475447029,-5800.0,0.00032837,2]
[402021412,1768475447038,-5800.0,0.0003286,2]
[402021413,1768475447055,-5800.0,0.00032869,2]
[402021414,1768475447068,-162.380719,0.00032877,2]
[402021415,1768475447078,-5800.0,0.00032877,2]
[402021416,1768475447088,-353.91841126,0.00032877,7]
[402021417,1768475447098,-500.0,0.00032877,2]
[402021418,1768475447108,-245.91126313,0.0003288,120]
[402021419,1768475447118,-276.76,0.000329,14]
[402021420,1768475447127,-500.0,0.00032932,2]
[402021421,1768475447137,-8847.00469551,0.00032949,2]
[402021422,1768475447147,-500.0,0.00032987,2]
[402021423,1768475447157,-181.01024507,0.00033,120]
[402021424,1768475447167,-500.0,0.00033041,2]
[402021425,1768475447176,-466.14735323,0.00033096,2]
[402021426,1768475447186,-158.72722159,0.00033171,2]
[402021427,1768475447196,-505.0,0.00033178,8]
[402021428,1768475447207,-218.70220985,0.00033292,10]
[402021429,1768475447219,-190.79,0.00033469,2]
[402021430,1768475447230,-173.47366199,0.00033807,2]
[402021431,1768475447242,-304.65805755,0.00033861,3]
[402021432,1768475447251,-181.01024507,0.000339,120]
[402021433,1768475447261,-500.0,0.00034,120]
[402021434,1768475447272,-1101.0,0.00034129,5]
[402021435,1768475447282,-252.79162724,0.00034246,2]